bitfinex/quotes_BTCUSD_20251120
["timestamp","ask_amount","ask_price","bid_price","bid_amount"]
[1763643400777,4.577e-05,91939.0,91938.0,0.75565387]
[1763643405399,4.577e-05,91939.0,91938.0,0.81439171]
[1763643405972,4.577e-05,91939.0,91938.0,0.75565387]
[1763643406666,4.577e-05,91939.0,91938.0,0.5797379]
[1763643406878,4.577e-05,91939.0,91938.0,0.2567379]
[1763643407078,4.577e-05,91939.0,91938.0,0.62330305]
[1763643412160,4.577e-05,91939.0,91938.0,0.75565387]
[1763643416031,4.577e-05,91939.0,91938.0,0.81439237]
[1763643416231,4.577e-05,91939.0,91938.0,0.81525137]
[1763643416646,4.577e-05,91939.0,91938.0,0.75651287]
[1763643419264,4.577e-05,91939.0,91938.0,0.86567781]
[1763643419468,4.577e-05,91939.0,91938.0,0.87707781]
[1763643419888,4.577e-05,91939.0,91938.0,0.76791287]
[1763643421379,4.577e-05,91939.0,91938.0,0.71294772]
[1763643425078,4.577e-05,91939.0,91938.0,0.67374772]
[1763643425281,4.577e-05,91939.0,91938.0,0.35074772]
[1763643428440,4.577e-05,91939.0,91938.0,0.39193772]
[1763643430109,4.577e-05,91939.0,91938.0,0.2595869]
[1763643432544,4.577e-05,91939.0,91938.0,0.2347969]
[1763643433569,4.577e-05,91939.0,91938.0,0.2346269]
[1763643434754,4.577e-05,91939.0,91938.0,0.2594169]
[1763643435304,4.577e-05,91939.0,91938.0,0.2346269]
[1763643435511,4.577e-05,91939.0,91938.0,0.2182269]
[1763643439004,4.577e-05,91939.0,91938.0,0.2346269]
[1763643440407,4.577e-05,91939.0,91938.0,0.2182269]
[1763643443019,4.577e-05,91939.0,91938.0,0.2594169]
[1763643443632,4.577e-05,91939.0,91938.0,0.30298205]
[1763643443842,4.577e-05,91939.0,91938.0,0.2594169]
[1763643446487,4.577e-05,91939.0,91938.0,0.2346269]
[1763643446986,0.01537577,91939.0,91938.0,0.2182269]
[1763643447367,4.577e-05,91939.0,91938.0,0.2182269]
[1763643449841,0.03901577,91939.0,91938.0,0.2182269]
[1763643450481,0.01519577,91939.0,91938.0,0.2182269]
[1763643451099,0.03901577,91939.0,91938.0,0.2183969]
[1763643452862,0.05937935,91939.0,91938.0,0.000859]
[1763643453839,0.45793215,91939.0,91938.0,0.000859]
[1763643454141,0.44536039,91939.0,91938.0,0.000859]
[1763643454338,0.66289592,91939.0,91938.0,0.000859]
[1763643454540,0.68832973,91939.0,91938.0,0.000859]
[1763643454742,0.68732973,91939.0,91938.0,0.000859]
[1763643455156,0.68832973,91939.0,91938.0,0.000859]
[1763643455405,0.4727942,91939.0,91938.0,0.000859]
[1763643455614,0.4707942,91939.0,91938.0,0.000859]
[1763643456018,0.4687942,91939.0,91938.0,0.000859]
[1763643456256,0.44736039,91939.0,91938.0,0.000859]
[1763643456835,0.44936039,91939.0,91938.0,0.000859]
[1763643460410,0.68395304,91939.0,91938.0,0.000859]
[1763643460617,0.70101064,91939.0,91938.0,0.000859]
[1763643461718,0.48347511,91939.0,91938.0,0.000859]
[1763643462089,0.70101064,91939.0,91938.0,0.000859]
[1763643463492,0.68395352,91939.0,91938.0,0.000859]
[1763643464511,0.46641799,91939.0,91938.0,0.000859]
[1763643464973,0.68395352,91939.0,91938.0,0.000859]
[1763643465188,0.47009799,91939.0,91938.0,0.000859]
[1763643465811,0.46641799,91939.0,91938.0,0.000859]
[1763643466032,0.38637935,91939.0,91938.0,0.000859]
[1763643466240,0.06705935,91939.0,91938.0,0.000859]
[1763643466646,0.09425129,91939.0,91938.0,0.000859]
[1763643468484,0.06705935,91939.0,91938.0,0.000859]
[1763643468946,0.06337935,91939.0,91938.0,0.2183969]
[1763643469200,0.04323935,91939.0,91938.0,0.2183969]
[1763643469613,0.06370935,91939.0,91938.0,0.2183969]
[1763643469814,0.06470935,91939.0,91938.0,0.000859]
[1763643470221,0.06570935,91939.0,91938.0,0.000859]
[1763643470425,0.06370935,91939.0,91938.0,0.000859]
[1763643470636,0.09190129,91939.0,91938.0,0.000859]
[1763643470838,0.09290129,91939.0,91938.0,0.000859]
[1763643471704,0.06570935,91939.0,91938.0,0.000859]
[1763643471913,0.09290129,91939.0,91938.0,0.000859]
[1763643472958,0.06570935,91939.0,91938.0,0.000859]
[1763643473164,0.09290129,91939.0,91938.0,0.000859]
[1763643474275,0.06570935,91939.0,91936.0,0.22841854]
[1763643474480,0.01523,91937.0,91936.0,0.22841854]
[1763643474706,0.03559358,91937.0,91936.0,0.22841854]
[1763643474983,0.03559358,91937.0,91932.0,0.0108776]
[1763643474984,0.06006358,91937.0,91932.0,0.0108776]
[1763643475165,0.0720264,91936.0,91933.0,0.01087748]
[1763643475386,0.02681,91933.0,91931.0,0.22843214]
[1763643475610,0.03559358,91932.0,91931.0,0.22843219]
[1763643475757,0.06006358,91932.0,91931.0,0.22843219]
[1763643476503,0.06006358,91932.0,91930.0,0.22843355]
[1763643476711,0.06006358,91931.0,91930.0,0.22843355]
[1763643476948,0.06006358,91931.0,91897.0,0.43526523]
[1763643477158,0.01523,91929.0,91928.0,0.01087807]
[1763643477331,0.03559358,91929.0,91926.0,0.22844446]
[1763643477495,0.04851358,91928.0,91927.0,0.21756373]
[1763643477924,0.06374358,91928.0,91927.0,0.21756373]
[1763643480006,0.04338,91928.0,91927.0,0.21756373]
[1763643480216,0.06371757,91928.0,91927.0,0.21756373]
[1763643480420,0.06371757,91928.0,91927.0,0.2178827]
[1763643482363,0.02401757,91928.0,91927.0,0.2178827]
[1763643483362,0.06251757,91928.0,91927.0,0.00031897]
[1763643485725,0.06451757,91928.0,91927.0,0.00031897]
[1763643485926,0.06351757,91928.0,91927.0,0.2178829]
[1763643486130,0.06351757,91928.0,91927.0,0.00031897]
[1763643486513,0.06451757,91928.0,91927.0,0.00031897]
[1763643487736,0.09171276,91928.0,91927.0,0.00031897]
[1763643488888,0.06451757,91928.0,91927.0,0.00031897]
[1763643489111,0.09103474,91928.0,91927.0,0.00031897]
[1763643489977,0.06451757,91928.0,91927.0,0.00031897]
[1763643490782,0.02277,91927.0,91926.0,0.21756566]
[1763643490985,0.04310757,91927.0,91926.0,0.21756566]
[1763643491185,0.02033757,91927.0,91926.0,0.21756566]
[1763643491397,0.02401757,91927.0,91926.0,0.21756566]
[1763643491963,0.02605294,91927.0,91926.0,0.21756566]
[1763643492365,0.07631294,91927.0,91921.0,0.21757617]
[1763643492618,0.02037294,91926.0,91924.0,0.01087855]
[1763643492856,0.02037294,91926.0,91925.0,0.21756867]
[1763643493817,0.03610294,91926.0,91925.0,0.21756867]
[1763643494018,0.05887294,91926.0,91920.0,1.08467101]
[1763643494222,0.04314294,91925.0,91922.0,0.22845341]
[1763643494463,0.01573,91921.0,91920.0,1.31313024]
[1763643494888,0.0385,91921.0,91920.0,1.08467101]
[1763643495215,0.05887294,91921.0,91920.0,1.30225151]
[1763643495841,0.06087294,91921.0,91920.0,1.30225151]
[1763643496225,0.06087294,91921.0,91918.0,0.01087926]
[1763643496428,0.0274,91919.0,91918.0,0.22846382]
[1763643496635,0.04777294,91919.0,91918.0,0.22846382]
[1763643496849,0.07054294,91919.0,91918.0,0.22872484]
[1763643498052,0.07422294,91919.0,91918.0,0.22872484]
[1763643498285,0.03572294,91919.0,91918.0,0.22872484]
[1763643498700,0.02405294,91919.0,91918.0,0.22872484]
[1763643498909,0.02605294,91919.0,91918.0,0.22872484]
[1763643503576,0.02605294,91919.0,91918.0,0.22852484]
[1763643504322,0.02237294,91919.0,91918.0,0.22852484]
[1763643504539,0.002,91919.0,91918.0,0.38372978]
[1763643504738,0.002,91919.0,91918.0,0.27456484]
[1763643505108,0.002,91919.0,91918.0,0.59756484]
[1763643505279,0.001,91919.0,91918.0,0.59756484]
[1763643505730,0.00902023,91930.0,91929.0,0.2175592]
[1763643505910,0.00902023,91930.0,91929.0,1.30223021]
[1763643509424,0.00902023,91930.0,91929.0,1.30812021]
[1763643509679,0.00902023,91930.0,91929.0,1.30223021]
[1763643512062,0.04698023,91930.0,91929.0,1.30223021]
[1763643512468,0.05840023,91930.0,91929.0,1.30223021]
[1763643512673,0.03568023,91930.0,91929.0,1.30223021]
[1763643514030,0.05989023,91930.0,91929.0,1.30223021]
[1763643516868,0.02044023,91930.0,91929.0,1.30223021]
[1763643517296,0.00902023,91930.0,91929.0,1.30223021]
[1763643518110,0.02044023,91930.0,91929.0,1.30223021]
[1763643518358,0.06096023,91930.0,91929.0,1.30223021]
[1763643518698,0.03675023,91930.0,91929.0,1.30223021]
[1763643518898,0.06096023,91930.0,91929.0,1.30223021]
[1763643519223,0.06096023,91930.0,91929.0,1.08467101]
[1763643519438,0.06096023,91930.0,91929.0,1.30223021]
[1763643519802,0.06096023,91930.0,91929.0,1.08467101]
[1763643520158,0.06096023,91930.0,91929.0,1.30223021]
[1763643524190,0.00902023,91930.0,91929.0,1.30223021]
[1763643526704,0.01142,91935.0,91932.0,0.2175521]
[1763643526933,0.01142,91935.0,91934.0,0.21754737]
[1763643527140,0.0151,91935.0,91934.0,0.21754737]
[1763643527344,0.03548748,91935.0,91934.0,0.21754737]
[1763643527923,0.03648748,91935.0,91934.0,0.21754737]
[1763643528839,0.03280748,91935.0,91934.0,0.21754737]
[1763643529060,0.002,91935.0,91934.0,0.26955737]
[1763643529289,0.00568,91935.0,91934.0,0.26955737]
[1763643529466,0.002,91935.0,91934.0,0.26955737]
[1763643529821,0.001,91935.0,91934.0,0.26955737]
[1763643530433,0.002,91935.0,91934.0,0.26955737]
[1763643530922,0.001,91935.0,91934.0,0.26955737]
[1763643531143,0.002,91935.0,91934.0,0.26955737]
[1763643531781,0.001,91935.0,91934.0,0.26955737]
[1763643533268,0.00372577,91939.0,91938.0,0.2175379]
[1763643534029,0.00372577,91939.0,91938.0,0.2581579]
[1763643534230,4.577e-05,91939.0,91938.0,0.2581579]
[1763643535209,4.577e-05,91939.0,91938.0,0.24692923]
[1763643540942,4.577e-05,91939.0,91938.0,0.22225923]
[1763643541441,4.577e-05,91939.0,91938.0,0.24692923]
[1763643542465,4.577e-05,91939.0,91938.0,0.22225923]
[1763643543041,4.577e-05,91939.0,91938.0,0.24675923]
[1763643543459,4.577e-05,91939.0,91938.0,0.22225923]
[1763643544045,4.577e-05,91939.0,91938.0,0.2175379]
[1763643547514,4.577e-05,91939.0,91938.0,0.2573479]
[1763643548358,4.577e-05,91939.0,91938.0,0.26170368]
[1763643549353,4.577e-05,91939.0,91938.0,0.23720368]
[1763643551270,4.577e-05,91939.0,91938.0,0.22189368]
[1763643552448,0.04143577,91939.0,91938.0,0.2175379]
[1763643552653,0.01671577,91939.0,91938.0,0.2175379]
[1763643553179,0.04143577,91939.0,91938.0,0.2175379]
[1763643553760,0.01771577,91939.0,91938.0,0.2175379]
[1763643553961,0.00104577,91939.0,91938.0,0.2175379]
[1763643555573,0.04243577,91939.0,91938.0,0.2175379]
[1763643555777,0.04243577,91939.0,91937.0,0.21753792]
[1763643555987,0.04139,91938.0,91937.0,0.21753792]
[1763643557388,0.04139,91938.0,91934.0,0.13235082]
[1763643557557,4.577e-05,91939.0,91935.0,0.01087725]
[1763643557558,0.04512954,91937.0,91935.0,0.01087725]
[1763643557719,0.02040954,91936.0,91935.0,0.22842002]
[1763643557922,0.07352954,91936.0,91935.0,0.22842002]
[1763643559147,0.04880954,91936.0,91935.0,0.22842002]
[1763643559350,4.577e-05,91939.0,91938.0,0.2175379]
[1763643559551,4.577e-05,91939.0,91938.0,0.5803479]
[1763643560378,4.577e-05,91939.0,91938.0,0.58936813]
[1763643565094,4.577e-05,91939.0,91938.0,0.5405379]
[1763643565946,4.577e-05,91939.0,91938.0,0.5558479]
[1763643566065,4.577e-05,91939.0,91938.0,0.5803479]
[1763643569649,4.577e-05,91939.0,91938.0,0.34558033]
[1763643569980,4.577e-05,91939.0,91938.0,0.56311823]
[1763643575657,4.577e-05,91939.0,91938.0,0.2175379]
[1763643576763,4.577e-05,91939.0,91934.0,0.21754673]
[1763643576764,0.01630577,91939.0,91931.0,0.00902023]
[1763643577090,0.00902023,91930.0,91919.0,0.00023202]
[1763643577291,0.02799,91920.0,91919.0,0.00023202]
[1763643577519,0.04838114,91920.0,91919.0,0.00023202]
[1763643577714,0.07209114,91920.0,91919.0,0.00023202]
[1763643578284,0.0517,91920.0,91919.0,0.00023202]
[1763643578751,0.34174942,91920.0,91919.0,0.00023202]
[1763643578973,0.44716892,91920.0,91919.0,0.00023202]
[1763643579175,0.45941892,91920.0,91919.0,0.00023202]
[1763643580334,0.46041892,91920.0,91919.0,0.00023202]
[1763643580833,0.47747916,91920.0,91919.0,0.00023202]
[1763643581039,0.47847916,91920.0,91919.0,0.00023202]
[1763643583534,0.69605966,91920.0,91919.0,0.00023202]
[1763643583784,0.47847916,91920.0,91919.0,0.00023202]
[1763643585390,0.48215916,91920.0,91919.0,0.00023202]
[1763643585568,0.47847916,91920.0,91919.0,0.00023202]
[1763643585775,0.48215916,91920.0,91919.0,0.00023202]
[1763643585972,0.48207536,91920.0,91919.0,0.00023202]
[1763643587338,0.10329287,91920.0,91919.0,0.00023202]
[1763643587508,0.05738,91920.0,91919.0,0.00023202]
[1763643588699,0.02999,91920.0,91919.0,0.21781489]
[1763643589305,0.01741,91920.0,91919.0,0.21781489]
[1763643589489,0.00468,91920.0,91919.0,0.21781489]
[1763643589682,0.00568,91920.0,91919.0,0.21781489]
[1763643590310,0.00468,91920.0,91919.0,0.21781489]
[1763643590512,0.00468,91920.0,91919.0,0.00023202]
[1763643590715,0.02194,91920.0,91919.0,0.00023202]
[1763643590894,0.04565,91920.0,91919.0,0.21781489]
[1763643591090,0.02194,91920.0,91919.0,0.21781489]
[1763643591490,0.04565,91920.0,91919.0,0.21781489]
[1763643592516,0.04565,91920.0,91919.0,0.00023202]
[1763643592904,0.04565,91920.0,91919.0,0.21781489]
[1763643593742,0.04565,91920.0,91919.0,0.00023202]
[1763643594267,0.04565,91920.0,91919.0,0.21781489]
[1763643595027,0.00568,91920.0,91919.0,0.21781489]
[1763643595467,0.02194,91920.0,91919.0,0.21781489]
[1763643595618,0.04565,91920.0,91919.0,0.00023202]
[1763643595821,0.04565,91920.0,91919.0,0.21781489]
[1763643598283,0.00568,91920.0,91919.0,0.21781489]
[1763643599031,0.002,91920.0,91919.0,0.21758287]
[1763643599285,0.00568,91920.0,91919.0,0.21758287]
[1763643599480,0.002,91920.0,91919.0,0.21758287]
[1763643599685,0.00568,91920.0,91919.0,0.21758287]
[1763643600422,0.002,91920.0,91919.0,0.21758287]
[1763643600628,0.00568,91920.0,91919.0,0.21758287]
[1763643601441,0.00568,91920.0,91915.0,0.01087961]
[1763643601442,0.05467023,91920.0,91913.0,1.30226721]
[1763643601640,0.01626,91914.0,91912.0,0.01087997]
[1763643601841,0.01012,91916.0,91912.0,0.01087997]
[1763643601842,0.01012,91916.0,91915.0,0.21759234]
[1763643602341,0.02607,91916.0,91915.0,0.21759234]
[1763643602546,0.01012,91916.0,91915.0,0.21759234]
[1763643603260,0.01241,91922.0,91921.0,0.21757813]
[1763643603466,0.01609,91922.0,91920.0,0.21758029]
[1763643603659,0.04041,91922.0,91921.0,0.21757813]
[1763643603893,0.05268,91922.0,91921.0,0.21757813]
[1763643604092,0.03641647,91922.0,91921.0,0.21757813]
[1763643605123,0.02132647,91922.0,91921.0,0.22802813]
[1763643605330,0.02600647,91922.0,91921.0,0.24407813]
[1763643605794,0.02600647,91922.0,91921.0,0.22802813]
[1763643606896,0.06627647,91922.0,91920.0,0.21758013]
[1763643607095,0.03627647,91921.0,91920.0,0.21758013]
[1763643607503,0.06059647,91921.0,91919.0,0.21758287]
[1763643607714,0.06059647,91920.0,91919.0,0.21758287]
[1763643608102,0.06059647,91920.0,91914.0,1.31314503]
[1763643608461,0.04464647,91919.0,91916.0,0.22846876]
[1763643608643,0.02432,91919.0,91918.0,0.21758523]
[1763643608819,0.00368,91922.0,91921.0,0.21757813]
[1763643609023,0.001,91920.0,91914.0,1.08467101]
[1763643609223,0.01595,91915.0,91911.0,0.00023205]
[1763643609402,0.02037077,91914.0,91911.0,0.00023205]
[1763643609618,0.01595,91912.0,91911.0,0.00023205]
[1763643609788,0.03632077,91912.0,91911.0,0.00023205]
[1763643609988,0.06064077,91912.0,91911.0,0.21783386]
[1763643610940,0.06164077,91912.0,91911.0,0.21783386]
[1763643611343,0.03832077,91912.0,91911.0,0.21783386]
[1763643611544,0.02237077,91912.0,91911.0,0.21783386]
[1763643611795,0.02605077,91912.0,91911.0,0.21783386]
[1763643612648,0.06632077,91912.0,91911.0,0.21783386]
[1763643613520,0.06632077,91912.0,91911.0,0.00023205]
[1763643613727,0.06632077,91912.0,91911.0,0.21783386]
[1763643614252,0.06632077,91912.0,91911.0,0.00023205]
[1763643617486,0.06632077,91912.0,91911.0,0.21783386]
[1763643617891,0.06635708,91912.0,91911.0,0.00023205]
[1763643621349,0.06635708,91912.0,91911.0,0.21783386]
[1763643621933,0.06635708,91912.0,91911.0,0.00023205]
[1763643625188,0.06435708,91912.0,91911.0,0.00023205]
[1763643625622,0.06635708,91912.0,91911.0,0.00023205]
[1763643626105,0.06634397,91912.0,91911.0,0.00023205]
[1763643627244,0.11844646,91912.0,91911.0,0.00023205]
[1763643628186,0.11476646,91912.0,91911.0,0.00023205]
[1763643628404,0.06634397,91912.0,91911.0,0.21783386]
[1763643629224,0.06634397,91912.0,91911.0,0.00023205]
[1763643629441,0.0935439,91912.0,91911.0,0.00023205]
[1763643629645,0.0935439,91912.0,91911.0,0.21783386]
[1763643629803,0.06575527,91912.0,91911.0,0.21783386]
[1763643631289,0.06575527,91912.0,91911.0,0.00023205]
[1763643631692,0.0929552,91912.0,91911.0,0.00023205]
[1763643631888,0.14505769,91912.0,91911.0,0.00023205]
[1763643633527,0.46805769,91912.0,91911.0,0.00023205]
[1763643633723,0.44085776,91912.0,91911.0,0.00023205]
[1763643634136,0.44085631,91912.0,91911.0,0.00023205]
[1763643634493,0.65845575,91912.0,91911.0,0.00023205]
[1763643634692,0.68194729,91912.0,91911.0,0.00023205]
[1763643634888,0.47454453,91912.0,91911.0,0.00023205]
[1763643635095,0.47354453,91912.0,91911.0,0.00023205]
[1763643635291,0.69014397,91912.0,91911.0,0.00023205]
[1763643635508,0.69114397,91912.0,91911.0,0.00023205]
[1763643635711,0.69214397,91912.0,91911.0,0.00023205]
[1763643635913,0.47254453,91912.0,91911.0,0.00023205]
[1763643636279,0.69214397,91912.0,91911.0,0.00023205]
[1763643636905,0.70920573,91912.0,91911.0,0.00023205]
[1763643637423,0.69214397,91912.0,91911.0,0.00023205]
[1763643638032,0.69114397,91912.0,91911.0,0.00023205]
[1763643638178,2.69314397,91912.0,91911.0,0.00023205]
[1763643638379,2.69214397,91912.0,91911.0,0.00023205]
[1763643638920,2.69014397,91912.0,91911.0,0.00023205]
[1763643639123,2.69214397,91912.0,91911.0,0.00023205]
[1763643639309,2.69414397,91912.0,91911.0,0.00023205]
[1763643640521,2.7112065,91912.0,91911.0,0.00023205]
[1763643641017,2.49360706,91912.0,91911.0,0.00023205]
[1763643641254,2.7112065,91912.0,91911.0,0.00023205]
[1763643642018,2.7405614,91912.0,91911.0,0.00023205]
[1763643642484,2.7075265,91912.0,91911.0,0.00023205]
[1763643642667,2.7112065,91912.0,91911.0,0.00023205]
[1763643642876,0.7112065,91912.0,91911.0,0.00023205]
[1763643644191,0.51066936,91912.0,91911.0,0.00023205]
[1763643646774,0.50698936,91912.0,91911.0,0.00023205]
[1763643647002,0.51066936,91912.0,91911.0,0.00023205]
[1763643647396,0.50698936,91912.0,91911.0,0.00023205]
[1763643647647,0.51066936,91912.0,91911.0,0.00023205]
[1763643647782,0.50698936,91912.0,91911.0,0.00023205]
[1763643647983,0.51066936,91912.0,91911.0,0.00023205]
[1763643650176,0.50698936,91912.0,91911.0,0.00023205]
[1763643650616,0.48992683,91912.0,91911.0,0.00023205]
[1763643650820,0.49360683,91912.0,91911.0,0.00023205]
[1763643651076,0.71120627,91912.0,91911.0,0.00023205]
[1763643652835,0.7112022,91912.0,91911.0,0.00023205]
[1763643654347,0.6941399,91912.0,91911.0,0.00023205]
[1763643655602,2.67374738,91912.0,91911.0,0.00023205]
[1763643655811,2.6941374,91912.0,91911.0,0.00023205]
[1763643657011,2.7234923,91912.0,91911.0,0.00023205]
[1763643657380,2.74055495,91912.0,91911.0,0.00023205]
[1763643658414,2.74056592,91912.0,91911.0,0.00023205]
[1763643658815,2.67693742,91912.0,91911.0,0.00023205]
[1763643659024,2.71120585,91912.0,91911.0,0.00023205]
[1763643659226,2.74057172,91912.0,91911.0,0.00023205]
[1763643659588,2.71120585,91912.0,91911.0,0.00023205]
[1763643659790,2.74057709,91912.0,91911.0,0.00023205]
[1763643659997,2.71120585,91912.0,91911.0,0.00023205]
[1763643660247,2.74057698,91912.0,91911.0,0.00023205]
[1763643660433,2.71120585,91912.0,91911.0,0.00023205]
[1763643660719,2.49360641,91912.0,91911.0,0.00023205]
[1763643660839,2.71120585,91912.0,91911.0,0.00023205]
[1763643661046,2.7112104,91912.0,91911.0,0.00023205]
[1763643661435,2.71121359,91912.0,91911.0,0.00023205]
[1763643663115,2.71123784,91912.0,91911.0,0.00023205]
[1763643663530,2.70755784,91912.0,91911.0,0.00023205]
[1763643663933,2.71123784,91912.0,91911.0,0.00023205]
[1763643664131,2.72830036,91912.0,91911.0,0.00023205]
[1763643664281,2.71123784,91912.0,91911.0,0.00023205]
[1763643667267,2.70755784,91912.0,91911.0,0.00023205]
[1763643667485,2.7283004,91912.0,91911.0,0.00023205]
[1763643667695,2.71123775,91912.0,91911.0,0.00023205]
[1763643668170,2.71123775,91912.0,91911.0,5.205e-05]
[1763643668604,2.75046424,91912.0,91911.0,5.205e-05]
[1763643668814,2.75046424,91912.0,91886.0,0.01088305]
[1763643668815,0.05210249,91899.0,91885.0,0.21766338]
[1763643669032,0.05210249,91897.0,91889.0,0.01088269]
[1763643669270,0.05210249,91895.0,91888.0,0.01088281]
[1763643669485,0.01161,91889.0,91888.0,0.01088281]
[1763643669708,0.02675,91889.0,91888.0,0.228538]
[1763643669951,0.05084654,91889.0,91888.0,0.228538]
[1763643670137,0.07511654,91889.0,91888.0,0.22858838]
[1763643670952,0.07611654,91889.0,91888.0,0.22858838]
[1763643671674,0.07711654,91889.0,91888.0,0.22858838]
[1763643672531,0.03770654,91889.0,91888.0,0.22858838]
[1763643672753,0.0261092,91889.0,91888.0,0.22858838]
[1763643674154,0.0655192,91889.0,91888.0,0.22858838]
[1763643674573,0.0412492,91889.0,91888.0,0.22858838]
[1763643675024,0.0655192,91889.0,91888.0,0.22925571]
[1763643675584,0.0655192,91889.0,91888.0,0.21837398]
[1763643677001,0.0412492,91889.0,91888.0,0.21837398]
[1763643677201,0.0261092,91889.0,91888.0,0.21837398]
[1763643678381,0.0224292,91889.0,91888.0,0.25761398]
[1763643678593,0.00568,91889.0,91888.0,0.25761398]
[1763643680712,0.002,91889.0,91888.0,0.25761398]
[1763643681712,0.001,91889.0,91888.0,0.25761398]
[1763643681916,0.001,91889.0,91888.0,0.23459398]
[1763643682125,0.001,91889.0,91888.0,0.25761398]
[1763643682723,0.00368,91896.0,91895.0,0.21763969]
[1763643683705,0.01088,91910.0,91909.0,0.21760654]
[1763643683905,0.0349669,91910.0,91909.0,0.21760654]
[1763643684131,0.0743769,91910.0,91909.0,0.21760654]
[1763643684894,0.0753769,91910.0,91909.0,0.21760654]
[1763643685098,0.0511069,91910.0,91909.0,0.21760654]
[1763643685302,0.0250869,91910.0,91909.0,0.21760654]
[1763643686117,0.0260869,91910.0,91909.0,0.21760654]
[1763643686527,0.0260869,91910.0,91909.0,0.25684654]
[1763643686528,0.0224069,91910.0,91909.0,0.25684654]
[1763643686723,0.00568,91910.0,91909.0,0.21760654]
[1763643689728,0.00568,91910.0,91907.0,0.22849176]
[1763643689844,0.00568,91910.0,91907.0,0.01088056]
[1763643690047,0.00568,91910.0,91908.0,0.21760675]
[1763643690314,0.00568,91910.0,91903.0,0.00023207]
[1763643690635,0.01161,91909.0,91908.0,0.21760891]
[1763643691472,0.01161,91909.0,91907.0,0.22849099]
[1763643691836,0.01161,91909.0,91906.0,0.2284921]
[1763643691982,0.01161,91909.0,91907.0,0.21761128]
[1763643692181,0.01161,91909.0,91908.0,0.21760891]
[1763643692366,0.01161,91909.0,91904.0,0.01061]
[1763643692575,0.01555,91905.0,91895.0,0.01088198]
[1763643692817,0.04023,91904.0,91894.0,0.21764007]
[1763643693015,0.04023,91904.0,91897.0,0.01088174]
[1763643693223,0.04023,91904.0,91901.0,0.228506]
[1763643693421,0.04023,91904.0,91895.0,0.01088198]
[1763643693597,0.04023,91904.0,91898.0,0.01088162]
[1763643693783,0.04123,91904.0,91894.0,0.46197345]
[1763643694018,0.04123,91904.0,91894.0,0.0108821]
[1763643694219,0.04123,91904.0,91895.0,0.01088198]
[1763643694596,0.04123,91904.0,91897.0,0.01088174]
[1763643694944,0.04123,91904.0,91897.0,0.22851663]
[1763643695083,0.04223,91904.0,91896.0,0.22851914]
[1763643695283,0.04223,91904.0,91897.0,0.01088174]
[1763643695485,0.04223,91904.0,91892.0,1.21702183]
[1763643695696,0.06260139,91904.0,91892.0,1.08467101]
[1763643695905,0.43770388,91904.0,91892.0,1.08467101]
[1763643696154,0.65532226,91904.0,91892.0,1.08467101]
[1763643696352,0.65432226,91904.0,91882.0,1.08467101]
[1763643696536,0.65332226,91904.0,91882.0,1.08467101]
[1763643696729,0.65532226,91904.0,91882.0,1.08467101]
[1763643696930,0.65432226,91904.0,91882.0,1.08467101]
[1763643697340,0.65332226,91904.0,91882.0,1.08467101]
[1763643697578,0.65432226,91904.0,91883.0,0.0108834]
[1763643697788,0.65432226,91904.0,91882.0,1.09555453]
[1763643698080,0.65432226,91904.0,91882.0,1.08467101]
[1763643698236,0.65432226,91904.0,91882.0,1.3132246]
[1763643698480,0.43770388,91904.0,91889.0,0.01088269]
[1763643698691,0.43770388,91904.0,91890.0,0.45109135]
[1763643698892,0.43770388,91904.0,91890.0,0.46197392]
[1763643699087,0.43770388,91904.0,91890.0,0.45109135]
[1763643699456,0.43770388,91904.0,91888.0,5.038e-05]
[1763643699737,0.65532226,91904.0,91888.0,5.038e-05]
[1763643701053,0.68801458,91904.0,91888.0,5.038e-05]
[1763643701222,0.68802356,91904.0,91888.0,5.038e-05]
[1763643702205,0.71150318,91904.0,91888.0,5.038e-05]
[1763643702604,0.72169454,91904.0,91888.0,5.038e-05]
[1763643702805,0.72069454,91904.0,91888.0,5.038e-05]
[1763643703551,0.72169454,91904.0,91888.0,5.038e-05]
[1763643704048,0.72069454,91904.0,91888.0,5.038e-05]
[1763643705315,0.71969454,91904.0,91888.0,5.038e-05]
[1763643705606,0.72169454,91904.0,91888.0,5.038e-05]
[1763643706056,0.72369454,91904.0,91888.0,5.038e-05]
[1763643706572,0.72368622,91904.0,91903.0,0.00023207]
[1763643707276,0.75101932,91904.0,91903.0,0.00023207]
[1763643707490,0.75301932,91904.0,91903.0,0.00023207]
[1763643707636,0.72368622,91904.0,91903.0,0.00023207]
[1763643707835,0.72168622,91904.0,91903.0,0.00023207]
[1763643708257,0.74901297,91904.0,91903.0,0.00023207]
[1763643708667,0.76807828,91904.0,91903.0,0.00023207]
[1763643708987,0.76607828,91904.0,91903.0,0.00023207]
[1763643709186,0.77007828,91904.0,91903.0,0.00023207]
[1763643709631,2.77007828,91904.0,91903.0,0.00023207]
[1763643709858,2.74075153,91904.0,91903.0,0.00023207]
[1763643710308,2.77983443,91904.0,91903.0,0.00023207]
[1763643710518,2.77783443,91904.0,91903.0,0.00023207]
[1763643710733,2.79490109,91904.0,91903.0,0.00023207]
[1763643710967,2.79790109,91904.0,91903.0,0.00023207]
[1763643711439,2.75681819,91904.0,91903.0,0.00023207]
[1763643711666,2.75981819,91904.0,91903.0,0.00023207]
[1763643713407,2.78910723,91904.0,91903.0,0.00023207]
[1763643713650,2.76349819,91904.0,91903.0,0.00023207]
[1763643714100,2.74643288,91904.0,91903.0,0.00023207]
[1763643715450,2.77572192,91904.0,91903.0,0.00023207]
[1763643715887,2.77567912,91904.0,91903.0,0.00023207]
[1763643718430,2.74639008,91904.0,91903.0,0.00023207]
[1763643718770,2.74639574,91904.0,91903.0,0.00023207]
[1763643719146,2.74639551,91904.0,91903.0,0.00023207]
[1763643719468,2.77568951,91904.0,91903.0,0.00023207]
[1763643720225,2.74639551,91904.0,91903.0,0.00023207]
[1763643720831,2.75495721,91904.0,91903.0,0.00023207]
[1763643721042,2.72932885,91904.0,91903.0,0.00023207]
[1763643721287,0.50803047,91904.0,91903.0,0.00023207]
[1763643721486,0.45960798,91904.0,91903.0,0.00023207]
[1763643721673,0.18571047,91904.0,91903.0,0.00023207]
[1763643721877,0.21191276,91904.0,91903.0,0.00023207]
[1763643722320,0.01146,91888.0,91886.0,0.21766025]
[1763643722522,0.01146,91888.0,91887.0,0.22854042]
[1763643722760,0.01514,91888.0,91887.0,0.22854042]
[1763643722953,0.07499832,91888.0,91887.0,0.22900468]
[1763643723160,0.03182832,91888.0,91887.0,0.22900468]
[1763643723369,0.02404832,91888.0,91887.0,0.22900468]
[1763643724130,0.02604832,91888.0,91887.0,0.22900468]
[1763643724303,0.02367,91894.0,91891.0,0.01088245]
[1763643724659,0.00368,91893.0,91891.0,0.01088245]
[1763643724862,0.0195,91892.0,91891.0,0.01088245]
[1763643725152,0.0195,91892.0,91891.0,0.22853079]
[1763643725355,0.03949,91892.0,91891.0,0.22853079]
[1763643725510,0.04254527,91892.0,91886.0,4.199e-05]
[1763643725711,0.02728,91887.0,91886.0,4.199e-05]